Workbook

Sheet Formblatt Gewerbe
A1: Mobilitätskonzepte bei gewerblichen Vorhaben - Formblatt
A3: 1. Anzahl Pkw-Stellplätze
A4: Art der Nutzung gem. Satzung | C4: Bezugsgröße gemäß Anlage 1 Stellplatzsatzung (Nutzfläche, Verkaufsfläche…) | D4: Richtwert nach Satzung | E4: Erklärung Richtwert (s. a. Hilfstabelle) | F4: Anzahl notwendiger Pkw-Stellplätze nach Satzung
A5: 2.1 Verwaltungs- und Bürogebäude allgemein | C5: 2000 | D5: =IFERROR(VLOOKUP(A5,'Hilfstabelle Stellplatzsatzung'!A:D,2,FALSE),"") -> 40 | E5: =IFERROR(VLOOKUP(A5,'Hilfstabelle Stellplatzsatzung'!A:E,3,FALSE),"") -> 1 je 40 m² Nutzfläche | F5: =IFERROR(C5/D5,"") -> 50 | H5: =IFERROR(IF(VLOOKUP(A5,'Hilfstabelle Stellplatzsatzung'!A:D,4,FALSE)=0,"",VLOOKUP(A5,'Hilfstabelle Stellplatzsatzung'!A:D,4,FALSE)),"") -> 
D6: =IFERROR(VLOOKUP(A6,'Hilfstabelle Stellplatzsatzung'!A:D,2,FALSE),"") ->  | E6: =IFERROR(VLOOKUP(A6,'Hilfstabelle Stellplatzsatzung'!A:E,3,FALSE),"") ->  | F6: =IFERROR(C6/D6,"") ->  | H6: =IFERROR(IF(VLOOKUP(A6,'Hilfstabelle Stellplatzsatzung'!A:D,4,FALSE)=0,"",VLOOKUP(A6,'Hilfstabelle Stellplatzsatzung'!A:D,4,FALSE)),"") -> 
D7: =IFERROR(VLOOKUP(A7,'Hilfstabelle Stellplatzsatzung'!A:D,2,FALSE),"") ->  | E7: =IFERROR(VLOOKUP(A7,'Hilfstabelle Stellplatzsatzung'!A:E,3,FALSE),"") ->  | F7: =IFERROR(C7/D7,"") ->  | H7: =IFERROR(IF(VLOOKUP(A7,'Hilfstabelle Stellplatzsatzung'!A:D,4,FALSE)=0,"",VLOOKUP(A7,'Hilfstabelle Stellplatzsatzung'!A:D,4,FALSE)),"") -> 
D8: =IFERROR(VLOOKUP(A8,'Hilfstabelle Stellplatzsatzung'!A:D,2,FALSE),"") ->  | E8: =IFERROR(VLOOKUP(A8,'Hilfstabelle Stellplatzsatzung'!A:E,3,FALSE),"") ->  | F8: =IFERROR(C8/D8,"") ->  | H8: =IFERROR(IF(VLOOKUP(A8,'Hilfstabelle Stellplatzsatzung'!A:D,4,FALSE)=0,"",VLOOKUP(A8,'Hilfstabelle Stellplatzsatzung'!A:D,4,FALSE)),"") -> 
D9: =IFERROR(VLOOKUP(A9,'Hilfstabelle Stellplatzsatzung'!A:D,2,FALSE),"") ->  | E9: =IFERROR(VLOOKUP(A9,'Hilfstabelle Stellplatzsatzung'!A:E,3,FALSE),"") ->  | H9: =IFERROR(IF(VLOOKUP(A9,'Hilfstabelle Stellplatzsatzung'!A:D,4,FALSE)=0,"",VLOOKUP(A9,'Hilfstabelle Stellplatzsatzung'!A:D,4,FALSE)),"") -> 
A10: Summe: | F10: =ROUND(SUM(F5:F9),0) -> 50
A12: 2. Reduzierung von Stellplätzen
A13: 2.1 Lage des Vorhabens | C13: Gebietszone 1 "Innenstadt und Innenstadtrandlage" | F13: FALSE | H13: =IF(OR(AND(F13=TRUE,F14=TRUE),AND(F13=FALSE,F14=FALSE)),"Es ist zwingend ein Haken bei Lage des Vorhabens zu setzen","") -> 
C14: Gebietszone 2 "übriges Stadtgebiet" | F14: TRUE
A15: 2.2 Reduzierung bei gewerblichen Vorhaben | D15: Reduzierungsfaktor | E15: Anzahl reduzierter Pkw-Stellplätze | F15: Anzahl Pkw-Stellplätze nach Reduzierung
A16: Flächenrelevante Maßnahmen | D16: 0.2 | E16: =ROUND(F10*0.2,0) -> 10 | F16: =F10-E16 -> 40
A17: zusätzliche Reduzierung durch ergänzende betriebliche Maßnahmen | D17: =IF(H17=TRUE, "20%","") ->  | E17: =ROUND(IF(H17=TRUE,F10*0.2,0),0) -> 0 | F17: =IF(H17=TRUE,F16-E17,"") ->  | H17: FALSE
B18: Anzahl potenziell eingesparter Pkw-Stellplätze | E18: =SUM(E16:E17) -> 10
A20: 2.3. Anzahl notwendiger Pkw-Stellplätze nach Reduzierung gesamt | F20: =F10-E18 -> 40
A21: 2.4. Anzahl errichteter Pkw-Stellplätze
A22: 2.5. Anzahl tatsächlich eingesparter Pkw-Stellplätze durch Mobilitätskonzept | F22: =IF(F21<F20,E18,ROUND(F10-F21,0)) -> 10
A23: 2.6. Eingesparter Ablösebetrag Pkw-Stellplätze | F23: =_xlfn.IFS(AND(F13=TRUE,F14=FALSE),F22*8840,AND(F13=FALSE,F14=TRUE),F22*5480,AND(F13=TRUE,F14=TRUE),"Fehler unter Pkt. 2.1",AND(F13=FALSE,F14=FALSE),"Fehler unter Pkt. 2.1") -> 54800
A25: 2.7. Eingesparte Fläche als Grundlage zur Berechnung der Fläche für das Mobilitätskonzept (Äquivalent 12,5 qm je eingespartem Pkw-Stellplatz) | F25: =F22*12.5 -> 125
A27: 3. Fahrradabstellplätze
A28: 3.1. Anzahl Fahrradabstellplätze
A29: Art der Nutzung gemäß Satzung | B29: Bezugsgröße gemäß Anlage 1 Stellplatzsatzung (Nutzfläche, Verkaufsfläche…) | C29: Richtwert nach Satzung | D29: Erklärung Richtwert (s. a. Hilfstabelle) | E29: Anzahl notwendiger Fahrradabstellplätze nach Satzung | F29: Anzahl notwendiger Fahrradabstellplätze mit Konzept (+ 10%)
A30: =IF(ISBLANK(A5),"",A5) -> 2.1 Verwaltungs- und Bürogebäude allgemein | B30: =IF(ISBLANK(C5),"",C5) -> 2000 | C30: =IFERROR(VLOOKUP(A30,'Hilfstabelle Stellplatzsatzung'!A:G,5,FALSE),"") -> 40 | D30: =IFERROR(VLOOKUP(A30,'Hilfstabelle Stellplatzsatzung'!A:G,6,FALSE),"") -> 1 je 40 m² Nutzfläche | E30: =IFERROR(B30/C30,"") -> 50 | H30: =IFERROR(IF(VLOOKUP(A30,'Hilfstabelle Stellplatzsatzung'!A:G,7,FALSE)=0,"",VLOOKUP(A30,'Hilfstabelle Stellplatzsatzung'!A:G,7,FALSE)),"") -> 
A31: =IF(ISBLANK(A6),"",A6) ->  | B31: =IF(ISBLANK(C6),"",C6) ->  | C31: =IFERROR(VLOOKUP(A31,'Hilfstabelle Stellplatzsatzung'!A:G,5,FALSE),"") ->  | D31: =IFERROR(VLOOKUP(A31,'Hilfstabelle Stellplatzsatzung'!A:G,6,FALSE),"") ->  | E31: =IFERROR(B31/C31,"") ->  | H31: =IFERROR(IF(VLOOKUP(A31,'Hilfstabelle Stellplatzsatzung'!A:G,7,FALSE)=0,"",VLOOKUP(A31,'Hilfstabelle Stellplatzsatzung'!A:G,7,FALSE)),"") -> 
A32: =IF(ISBLANK(A7),"",A7) ->  | B32: =IF(ISBLANK(C7),"",C7) ->  | C32: =IFERROR(VLOOKUP(A32,'Hilfstabelle Stellplatzsatzung'!A:G,5,FALSE),"") ->  | D32: =IFERROR(VLOOKUP(A32,'Hilfstabelle Stellplatzsatzung'!A:G,6,FALSE),"") ->  | E32: =IFERROR(B32/C32,"") ->  | H32: =IFERROR(IF(VLOOKUP(A32,'Hilfstabelle Stellplatzsatzung'!A:G,7,FALSE)=0,"",VLOOKUP(A32,'Hilfstabelle Stellplatzsatzung'!A:G,7,FALSE)),"") -> 
A33: =IF(ISBLANK(A8),"",A8) ->  | B33: =IF(ISBLANK(C8),"",C8) ->  | C33: =IFERROR(VLOOKUP(A33,'Hilfstabelle Stellplatzsatzung'!A:G,5,FALSE),"") ->  | D33: =IFERROR(VLOOKUP(A33,'Hilfstabelle Stellplatzsatzung'!A:G,6,FALSE),"") ->  | E33: =IFERROR(B33/C33,"") ->  | H33: =IFERROR(IF(VLOOKUP(A33,'Hilfstabelle Stellplatzsatzung'!A:G,7,FALSE)=0,"",VLOOKUP(A33,'Hilfstabelle Stellplatzsatzung'!A:G,7,FALSE)),"") -> 
C34: =IFERROR(VLOOKUP(A34,'Hilfstabelle Stellplatzsatzung'!A:G,5,FALSE),"") ->  | D34: =IFERROR(VLOOKUP(A34,'Hilfstabelle Stellplatzsatzung'!A:G,6,FALSE),"") ->  | H34: =IFERROR(IF(VLOOKUP(A34,'Hilfstabelle Stellplatzsatzung'!A:G,7,FALSE)=0,"",VLOOKUP(A34,'Hilfstabelle Stellplatzsatzung'!A:G,7,FALSE)),"") -> 
A35: Anzahl notwendiger Fahrradabstellplätze nach Satzung | E35: =ROUND(SUM(E30:E34),0) -> 50
A36: Anzahl notwendiger Fahrradabstellplätze mit Konzept (+ 10%) | F36: =ROUND(E35*0.1+E35,0) -> 55
A37: 3.2. Anzahl Abstellplätze für Lastenräder
B38: Anzahl notwendiger Stellplätze für Lastenräder | D38: 10 % der Fahrradabstellplätze sind entsprechend zu dimensionieren | F38: =F36*0.1 -> 5.5
A39: 3.3. Überdachung von Fahrradabstellplätzen
B40: Anzahl überdachter Fahrradabstellplätze | D40: 50% der Fahrradabstellplätze sind zu überdachen (respetive im Gebäude unterzubringen) | F40: =F36*0.5 -> 27.5
A42: 4. Flächenrelevante Maßnahmen (Die Auswahl der Elemente muss individuell in einem Konzeptpapier begründet werden.)
A43: 4.1. Fläche Soll für das Mobilitätskonzept in qm (10% der eingesparten Fläche, siehe unter 2.5., min. 20 qm) | F43: =IF(O43<20,20,O43) -> 20 | O43: =F25*0.1 -> 12.5
E44: tatsächliche Fläche | F44: tatsächliche Anzahl (plausible Erläuterung notwendig)
A45: 4.1.Carsharing | C45: 10 % der eingesparten Pkw-Stellplätze (mind. 1)
C47: Flächenäquivalent in m2/Stellplatz | D47: Anzahl bereitgestellter Elemente | E47: Fläche Ist in m2 | H47: FALSE
A48: 4.2. Bikesharing: | B48: Lastenpedelec / E-Trike/E-Vespa | C48: 4
B49: Lastenfahrräder | C49: 4 | H49: TRUE
B50: Fahrradanhänger | C50: 2
B51: Pedelec | C51: 1.5
B52: Kickroller | C52: 0.5
A53: 4.2. Fahrradförderung | B53: Duschen/Umkleiden/Trockenräume (mindestens je 1)
B54: Fahrradreparaturbaum/ -Werkstatt (mindestens 1)
A55: 4.3. Information und Kommunikaion | B55: Info-Steele (mindestens 1)
A56: 4.4. Lösungen für privaten Lieferverkehr | B56: z.B. Paketzustellung, Paketaufgabe (Paketboxen etc.) zur Nutzung durch die Beschäftigten
A57: 4.5. sonstige flächenrelevante Elemente
E58: Fläche IST in qm
E59: =SUM(E53:E57) -> 0 | H59: =IF(E59<ROUND(F43,0), "Fläche IST muss mindestens Fläche SOLL entsprechen (siehe Pkt. 4.1)", "") -> Fläche IST muss mindestens Fläche SOLL entsprechen (siehe Pkt. 4.1)
A60: 4.6. zusätzlich Anforderung an das Mobilitätskonzept für flächenrelevante Maßnahmen
A61: Beschreibung zu Reparatur und Wartung
A63: 5. Ergänzende betriebliche Maßnahmen
A64: Beschreibung betrieblicher Mobilitätselemente wie regelmäßige Radchecks für Mitarbeiter, professioneller Fahrradreparaturservice, Integration Car-und Bike-Sharing im Fuhrpark und für die Beschäftigten, Jobrad, Job-Ticket, Home-Office-Regelung, Ansprechpartner:in und Mobilitätsmanagement etc. (ggf. in gesondertem Konzeptpapier)
A65: 5.1 Mögliche Mobilitätsangebote
A66: Den Mitarbeiter:innen wird die Möglichkeit geboten, an einem Jobrad-System teilzunehmen, dadurch wird die Fahrradnutzung weiter gefördert.
A67: Mindestens einmal im Jahr (Frühling) finden Fahrradaktionstage statt. Dabei wird die Möglichkeit geboten, sein Fahrrad auf Fahrtüchtigkeit überprüfen sowie kleinere Mängle vor Ort beheben zu lassen. Tipss und Hinweise zum sicheren Fahren (Helmnutzung, richtig eingestellte Bremsen, das passende Rad etc.) runden die Veranstaltung ab.
A68: Der betriebliche Fuhrpark kann nach Feierabend und an Wochenenden von den Mitarbeiter:innen auch privat genutzt werden. Für die Buchung/Reservierung wird ein interner Kalender zur Verfügung gestellt.
A69: Ein/e Mitarbeiter:in oder Arbeitsgruppe nimmt sich dem Thema betriebliche Mobilität an (Mobilitätsbeauftragte im Betrieb) und steht allen Beschäftigten für Fragen und Anregungen zur Verfügung.
A71: Es müssen mindestens zwei der genannten Maßnahmen umgesetzt werden. Weitere, im Einzelfall beschriebene Maßnahmen sind nach Abstimmung möglich.
A72: 5.2 zusätzliche Anforderungen an das Mobilitätskonzept für ergänzende betriebliche Maßnahmen
A73: Beschreibung zu Buchung
A74: Regelmäßigen Teilnahme an Weiterbildungsangeboten zu Betrieblichen Mobilitätskonzepten (BMM)
A76: 6. Nachweis der Anforderungen an ein Mobilitätskonzept
A77: zum Bauantrag | F77: erfüllt
A78: 6.1. Mobilitätskonzept | B78: Plausible Darstellung des Konzeptes in Text, Bildern und Grafiken
A79: 6.2. Organisation von Betrieb und Wartung | B79: Angebot von externen Dienstleistern oder sonstiger verbindlicher Nachweis
A80: 6.3. Investition | B80: Darlegung von Investition und Betriebskosten über eine Dauer von 20 Jahren
A81: 6.4. Zuordnung der Stellplätze | B81: Stellplätze können lediglich Nutzungseinheiten zugeordnet werden besondere Personenbezogene Nutzungsrechte sind ausgeschlossen (Mobilitätskonzept-bezogene Nutzungsrechte stellen eine Ausnahmen dar, z.B. für Fahrgemeinschaften oder Carsharing)
A82: zur Nutzungsaufnahme
A83: 6.5. Information und Kommunikations-maßnahmen | B83: Informationsbroschüren, Beratungsangebote, Events etc.
A84: Evaluation
A85: 6.6. Evaluation | B85: Verpflichtung zur Darlegung vorhabenbezogener Daten, bzw. Verträgen mit Dienstleistern etc., die die Funktionalität des Mobilitätskonzeptes belegen, zunächst 1 Jahr nach Nutzungsaufnahme, dann alle drei Jahre. Es wird die Möglichkeit eingeräumt, bei negativem Evaluationsergebnis, die Mobilitätselemente mit geringer Nutzung zu tauschen gegen gleichwertige, die den Anforderungen der Mitarbeitenden eher entsprechen.
A86: 6.7. Sicherungs-maßnahmen bei negativem Evaluationsergebnis | B86: nicht hergestellte Pkw-Stellplätze werden nachgerüstet | E86: FALSE | F86: FALSE
B87: nicht hergestellte Pkw-Stellplätze werden abgelöst | E87: FALSE

Sheet Formblatt Wohnen
A1: Mobilitätskonzepte im Wohnungsbau - Formblatt
A3: 1. Anzahl Pkw-Stellplätze
A4: Größe der WE | B4: Anzahl WE freifinanziert | C4: Stellplatzschlüssel nach Wohnungsgröße | D4: Anzahl notwendiger Pkw-Stellplätze nach Satzung
A5: < 35 qm | B5: 5 | C5: 0.5 | D5: =B5*C5 -> 2.5
A6: > 35 qm | B6: 5 | C6: 1 | D6: =B6*C6 -> 5
A7: Summe: | B7: =SUM(B5:B6) -> 10 | D7: =ROUND(SUM(D5:D6),0) -> 8
A8: Größe der WE | B8: Anzahl WE Wohnungsbau Sozial | C8: Stellplatzschlüssel nach Wohnungsgröße | D8: Anzahl notwendiger Pkw-Stellplätze nach Satzung | E8: Pkw-Stellplätze nach Reduzierung von 20 % (Wohnungsbau Sozial)
A9: < 35 qm | B9: 5 | C9: 0.5 | D9: =B9*C9 -> 2.5
A10: > 35 qm | B10: 5 | C10: 1 | D10: =B10*C10 -> 5
A11: Summe: | B11: =SUM(B9:B10) -> 10 | D11: =ROUND(SUM(D9:D10),0) -> 8 | E11: =ROUND(D11-(D11*0.2),0) -> 6
A13: Gesamt Anzahl WE | B13: =B11+B7 -> 20
A15: 2. Reduzierung von Stellplätzen
A17: Lage des Vorhabens | B17: Gebietszone 1 "Innenstadt und Innenstadtrandgebiete" | F17: FALSE | H17: =IF(OR(AND(F17=TRUE,F18=TRUE),AND(F17=FALSE,F18=FALSE)),"Es ist zwingend ein Haken bei Lage des Vorhabens zu setzen","") -> 
B18: Gebietszone 2 "übriges Stadtgebiet" | F18: TRUE
A20: Mobilitätskonzept | B20: ohne Carsharing | F20: FALSE
B21: mit Carsharing | F21: TRUE
A23: 2.1. Stellplatzreduzierung in Gebietszone 1 "Innenstadt und Innenstadtrandgebiete"
A24: 2.1.1. Berechnung der Reduzierung
A25: Reduzierung durch Mobilitätskonzept bei freifinanzierten Wohnungen | C25: Anzahl notwendiger Pkw-Stellplätze nach Satzung | D25: Reduzierungsfaktor | E25: Anzahl reduzierter Pkw-Stellplätze durch Mobilitätskonzept | F25: Anzahl Pkw-Stellplätze nach Reduzierung
B26: Mobilitätskonzept ohne Carsharing | C26: =_xlfn.IFS(AND(F20=TRUE,F21=FALSE),D7,AND(F20=FALSE,F21=TRUE),"",AND(F20=TRUE,F21=TRUE),"Fehler unter Pkt. 2",AND(F20=FALSE,F21=FALSE),"Fehler unter Pkt. 2") ->  | D26: 0.2 | E26: =IFERROR(ROUND(C26*0.2,0),"") ->  | F26: =IFERROR(C26-E26,"") -> 
B27: oder
B28: Mobilitätskonzept mit Carsharing | C28: =_xlfn.IFS(AND(F21=TRUE,F20=FALSE),D7,AND(F21=FALSE,F20=TRUE),"",AND(F20=TRUE,F21=TRUE),"Fehler unter Pkt. 2",AND(F20=FALSE,F21=FALSE),"Fehler unter Pkt. 2") -> 8 | D28: 0.4 | E28: =IFERROR(ROUND(C28*0.4,0),"") -> 3 | F28: =IFERROR(C28-E28,"") -> 5
A29: Reduzierung durch Mobilitätskonzept im Wohnungsbau Sozial | F29: Anzahl Pkw-Stellplätze nach Reduzierung
B30: Mobilitätskonzept ohne Carsharing | C30: =_xlfn.IFS(AND(F20=TRUE,F21=FALSE),D11,AND(F20=FALSE,F21=TRUE),"",AND(F20=TRUE,F21=TRUE),"Fehler unter Pkt. 2",AND(F20=FALSE,F21=FALSE),"Fehler unter Pkt. 2") ->  | D30: 0.1 | E30: =IFERROR(ROUND(C30*0.1,0),"") ->  | F30: =IFERROR(C30-E30,"") -> 
B31: oder
B32: Mobilitätskonzept mit Carsharing | C32: =_xlfn.IFS(AND(F21=TRUE,F20=FALSE),D11,AND(F21=FALSE,F20=TRUE),"",AND(F20=TRUE,F21=TRUE),"Fehler unter Pkt. 2",AND(F20=FALSE,F21=FALSE),"Fehler unter Pkt. 2") -> 8 | D32: 0.2 | E32: =IFERROR(ROUND(C32*0.2,0),"") -> 2 | F32: =IFERROR(C32-E32,"") -> 6
A33: Anzahl potenziell eingesparter Pkw-Stellplätze durch Mobilitätskonzept (gesamt) | E33: =SUM(E26,E28,E30,E32) -> 5
A35: 2.1.2. Anzahl reduzierter Pkw-Stellplätze durch Wohnungsbau Sozial (s. Pkt. 1) | F35: =D11-E11 -> 2
A36: 2.1.3. Anzahl notwendiger Pkw-Stellplätze nach Reduzierung gesamt (durch Wohnungsbau Sozial und Mobilitätskonzept) | F36: =D7+E11-E33 -> 9
A37: 2.1.4. Anzahl errichteter Pkw-Stellplätze | F37: 10
A38: 2.1.5. Anzahl tatsächlich eingesparter Pkw-Stellplätze durch Mobilitätskonzept | F38: =IF(F37<F36,E33,D7+E11-F37) -> 4
A39: 2.1.6. Eingesparter Ablösebetrag Pkw-Stellplätze | F39: =IF(AND(F17=TRUE, F18=FALSE),F38*8840,"") -> 
A41: 2.1.7. Eingesparte Fläche als Grundlage zur Berechnung der Fläche für das Mobilitätskonzept (Äquivalent 12,5 qm je eingespartem Pkw-Stellplatz) | F41: =F38*12.5 -> 50
A43: 2.2. Stellplatzreduzierung in Gebietszone 2 "übriges Stadtgebiet"
A44: 2.2.1. Berechnung der Reduzierung
A45: Reduzierung durch Mobilitätskonzept bei freifinanzierten Wohnungen | C45: Anzahl notwendiger Pkw-Stellplätze nach Satzung | D45: Reduzierungsfaktor | E45: Anzahl reduzierter Pkw-Stellplätze durch Mobilitätskonzept | F45: Anzahl Pkw-Stellplätze nach Reduzierung
B46: Mobilitätskonzept ohne Carsharing | C46: =_xlfn.IFS(AND(F20=TRUE,F21=FALSE),D7,AND(F20=FALSE,F21=TRUE),"",AND(F20=TRUE,F21=TRUE),"Fehler unter Pkt. 2",AND(F20=FALSE,F21=FALSE),"Fehler unter Pkt. 2") ->  | D46: 0.15 | E46: =IFERROR(ROUND(C46*0.15,0),"") ->  | F46: =IFERROR(C46-E46,"") -> 
B47: oder
B48: Mobilitätskonzept mit Carsharing | C48: =_xlfn.IFS(AND(F21=TRUE,F20=FALSE),D7,AND(F21=FALSE,F20=TRUE),"",AND(F20=TRUE,F21=TRUE),"Fehler unter Pkt. 2",AND(F20=FALSE,F21=FALSE),"Fehler unter Pkt. 2") -> 8 | D48: 0.3 | E48: =IFERROR(ROUND(C48*0.3,0),"") -> 2 | F48: =IFERROR(C48-E48,"") -> 6
A49: Reduzierung durch Mobilitätskonzept im Wohnungsbau Sozial | F49: Anzahl Pkw-Stellplätze nach Reduzierung
B50: Mobilitätskonzept ohne Carsharing | C50: =_xlfn.IFS(AND(F20=TRUE,F21=FALSE),D11,AND(F20=FALSE,F21=TRUE),"",AND(F20=TRUE,F21=TRUE),"Fehler unter Pkt. 2",AND(F20=FALSE,F21=FALSE),"Fehler unter Pkt. 2") ->  | D50: 0.075 | E50: =IFERROR(ROUND(C50*0.075,0),"") ->  | F50: =IFERROR(C50-E50,"") -> 
B51: oder
B52: Mobilitätskonzept mit Carsharing | C52: =_xlfn.IFS(AND(F21=TRUE,F20=FALSE),D11,AND(F21=FALSE,F20=TRUE),"",AND(F20=TRUE,F21=TRUE),"Fehler unter Pkt. 2",AND(F20=FALSE,F21=FALSE),"Fehler unter Pkt. 2") -> 8 | D52: 0.15 | E52: =IFERROR(ROUND(C52*0.15,0),"") -> 1 | F52: =IFERROR(C52-E52,"") -> 7
A53: Anzahl potenziell eingesparter Pkw-Stellplätze durch Mobilitätskonzept (gesamt) | E53: =SUM(E46,E48,E50,E52) -> 3
A54: Erreichbarkeit von Nahversorgungseinrichtungen (fußläufige Entfernung maximal 600 m) | C54: Wird das Kriterium der Entfernung zur Nahversorgung nicht erreicht, ist zwingend ein Mobilitätskonzept mit Car-Sharing einzureichen.
A56: 2.2.2. Anzahl reduzierter Pkw-Stellplätze durch Wohnungsbau Sozial (s. Pkt. 1) | F56: =D11-E11 -> 2
A57: 2.2.3. Anzahl notwendiger Pkw-Stellplätze nach Reduzierung gesamt (durch Wohnungsbau Sozial und Mobilitätskonzept) | F57: =D7+E11-E53 -> 11
A58: 2.2.4. Anzahl errichteter Pkw-Stellplätze
A59: 2.2.5. Anzahl tatsächlich eingesparter Pkw-Stellplätze durch Mobilitätskonzept | F59: =IF(F58<F57,E53,D7+E11-F58) -> 3
A60: 2.2.6 Eingesparter Ablösebetrag Pkw-Stellplätze | F60: =IF(AND(F17=FALSE, F18=TRUE),F59*5480,"") -> 16440
A62: 2.2.7. Eingesparte Fläche als Grundlage zur Berechnung der Fläche für das Mobilitätskonzept (Äquivavent 12,5 qm je eingespartem Pkw-Stellplatz) | F62: =F59*12.5 -> 37.5
A64: 3. Fahrradabstellplätze
A65: 3.1. Anzahl Fahrradabstellplätze
A66: Größe der einzelnen WE | B66: Anzahl WE | C66: Wohnfläche in m² (Summe) | D66: Richtwert nach Satzung | E66: Anzahl notwendiger Fahrradabstellplätze nach Satzung | F66: Anzahl notwendiger Fahrradabstellplätze mit Konzept (+ 20%)
A67: < 35 m2 Wfl. | B67: =B5+B9 -> 10 | D67: 1 je WE | E67: =B67*1 -> 10
A68: > 35 m2 Wfl. | B68: =B6+B10 -> 10 | D68: 1 je 35 qm Wfl. | E68: =ROUND(C68/35,0) -> 0
A69: Anzahl notwendiger Fahrradabstellplätze nach Satzung | E69: =E67+E68 -> 10
A70: Anzahl notwendiger Fahrradabstellplätze mit Konzept (+ 20%) | F70: =E69+E69*0.2 -> 12
A71: 3.2 Anzahl Abstellplätze für Lastenräder
A72: Anzahl notwendiger Stellplätze für Lastenräder/Anhänger | C72: 10 % der Fahrradabstellplätze sind als Stellplätze für Lastenräder/Anhänger zu dimensionieren | F72: =F70*0.1 -> 1.2
A74: 4. Mobilitätsangebote
A75: 4.1. Fläche für Angebote zur gemeinschaftlichen Nutzung
E76: Fläche Ist in m2 | F76: Fläche Soll in m2 | L76: Hilfstabelle für F72
A77: Anforderung: 10 % der eingesparten Fläche (Pkt. 2.1.5/2.2.5) unter Beachtung: bis 50 WE mind. 20 qm, bis 150 WE mind. 40 qm, ab 150 WE mind. 60 qm | D77: Gesamt | F77: =_xlfn.IFS(AND(F17=TRUE,F18=FALSE),O77,AND(F18=TRUE,F17=FALSE),O78,AND(F18=TRUE,F17=TRUE),"Fehler unter Pkt. 2",AND(F18=FALSE,F17=FALSE),"Fehler unter Pkt. 2") -> 20 | H77: =IF(E77<ROUND(F77,0), "Fläche Ist muss mindestens der Fläche Soll entsprechen", "") -> Fläche Ist muss mindestens der Fläche Soll entsprechen | L77: =IF(F17=TRUE,F41,0) -> 0 | M77: =L77*0.1 -> 0 | N77: =_xlfn.IFS(B13<=50,20,B13<=150,40,B13>150,60) -> 20 | O77: =IF(M77>N77,M77,N77) -> 20
L78: =IF(F18=TRUE,F62,0) -> 37.5 | M78: =L78*0.1 -> 3.75 | N78: =_xlfn.IFS(B13<=50,20,B13<=150,40,B13>150,60) -> 20 | O78: =IF(M78>N78,M78,N78) -> 20
A79: 4.2. Umfang der Angebote zur gemeinschaftlichen Nutzung
A80: Die Auswahl der Sharing-Fahrzeuge muss individuell begründet werden. bis 50 WE mind ein Lastenrad ab 50 WE mind zwei Lastenräder ab 100 WE je 50 WE ein Lastenrad mehr mind. die Hälfte der Lastenräder mit Elektromotor (aufrunden) bis 100 WE mind eine zusätzliche Angebotseinheit ab 100 WE je 50 WE eine weitere Angebotseinheit ab 50 WE Angebot für Fahrradreparatur und Paket-Lieferungen | D80: Anzahl Wohneinheiten | F80: =B13 -> 20
D81: Element | F81: Anzahl bereitgestellter Einheiten
D82: Lastenrad
E83: davon mit E-Motor
D84: Angebot für Fahrrad-Reparatur
D85: Angebot für Paket-Lieferungen
D86: Anhänger/Trolley (1 Einheit = 2 Stück)
D87: Pedelec (1 Einheit = 2 Stück)
D88: E-Roller
D89: E-Tretroller (1 Einheit = 3 Stück)
D90: digitale Informations-Tafel
D91: Lade-Spinds
A92: ….....bei Konzepten mit Carsharing zusätzlich
E93: notwendige Anzahl | F93: tatsächlich mit Pkw belegte Anzahl (min. 50 % der notwendigen Anzahl) | L93: Hilfstabelle für E89
A94: 4.3. Carsharing | B94: Carsharing-Stellplätze: 10 % der eingesparten Pkw-Stellplätze (mind. 1) | E94: =_xlfn.IFS(AND(F21=TRUE,F17=TRUE,F18=FALSE),M94,(AND(F21=TRUE,F18=TRUE,F17=FALSE)),M95,F21=FALSE,"kein Carsharing") -> 1 | F94: 0 | H94: =IF(OR(AND(E94>=2,E94/2>=F94),(AND(E94<=2,F94<1))),"Bedingung unter Pkt. 4.3 nicht erfüllt. Bitte prüfen!","") -> Bedingung unter Pkt. 4.3 nicht erfüllt. Bitte prüfen! | L94: =IF(AND(F21=TRUE,F17=TRUE,F18=FALSE),F38*0.1) -> FALSE | M94: =IF(L94>1,L94,1) -> FALSE
L95: =IF(AND(F21=TRUE,F18=TRUE,F17=FALSE),F59*0.1) -> 0.3 | M95: =IF(L95>1,L95,1) -> 1
B96: Carsharing-Fahrzeuge | C96: werden durch Fremdfirma für einen offenen Nutzerkreis bereitgestellt | F96: 1
C97: werden durch Fremdfirma für einen geschlossenen Nutzerkreis bereitgestellt
C98: werden vom Eigentümer selbst zur Verfügung gestellt
C99: Plattform für privates Carsharing
C100: es erfolgt eine Beteiligung am Carsharing im näheren Umfeld
A102: 5. Ergänzende optionale Angebote
A103: 5.1. Beteiligung an einem öffentlichen Fahrradvermietsystem ("Stadtrad"); z.B. durch Bereitstellung von Flächen auf dem Grundstück; Ausgestaltung in Konzeptbeschreibung
A104: 5.2. Sonstiges | B104: bspw.: Quartierszentrale mit weiteren Portier-Dienstleistungen, Fahrradwartung und Mobilitätsmanagement, digitale Plattform, Website
A107: 6. Nachweis der Anforderungen an ein Mobilitätskonzept
A108: zum Bauantrag | F108: erfüllt
A109: 6.1. Mobilitätskonzept | B109: Plausible Darstellung des Konzeptes in Text, Bildern und Grafiken
A110: 6.2. Organisation von Betrieb und Wartung | B110: Angebot von externen Dienstleistern oder sonstiger verbindlicher Nachweis
A111: 6.3. Investition | B111: Darlegung von Investition und Betriebskosten über eine Dauer von 20 Jahren
A112: 6.4. Sicherung der Stellplätze | B112: 10 % der Pkw-Stellplätze werden nicht in Teileigentum überführt und nicht dauerhaft vermietet (dafür ist eine entsprechende grundbuchrechtliche Sicherung erforderlich!)
A113: zur Nutzungsaufnahme
A114: 6.5. Information und Kommunikations-maßnahmen | B114: Informationsbroschüren, Beratungsangebote, Events etc.
A115: Evaluation
A116: 6.6. Evaluation | B116: Verpflichtung zur Darlegung vorhabenbezogener Daten, bzw. Verträgen mit Dienstleistern etc., die die Funktionalität des Mobilitätskonzeptes belegen, zunächst 1 Jahr nach Nutzungsaufnahme, dann alle drei Jahre. Es wird die Möglichkeit eingeräumt, bei negativem Evaluationsergebnis, die Mobilitätselemente mit geringer Nutzung zu tauschen gegen gleichwertige, die den Anforderungen der Bewohner:innen eher entsprechen.
A117: 6.7. Sicherungsmaßnahmen bei negativem Evaluationsergebnis | B117: nicht hergestellte Pkw-Stellplätze werden nachgerüstet
B118: nicht hergestellte Pkw-Stellplätze werden abgelöst

Sheet Hilfstabelle Stellplatzsatzung
A1: Nr. und Nutzungsart | B1: Richtwert Stellplatz | C1: Bedeutung Richtwert Stellplatz | D1: Bemerkung für Stellplätze | E1: Richtwert Fahrradstellplatz | F1: Bedeutung Richtwert Fahrradstellplatz | G1: Bemerkung für Fahrradstellplätze
A3: 2.1 Verwaltungs- und Bürogebäude allgemein | B3: 40 | C3: 1 je 40 m² Nutzfläche | E3: 40 | F3: 1 je 40 m² Nutzfläche
A4: 2.2 Räume mit erheblichem Besucherverkehr (Schalter-, Abfertigungs-, oder Beratungsräume, Azrtpraxen u.ä.) | B4: 30 | C4: 1 je 30 m² Nutzfläche | E4: 30 | F4: 1 je 30 m² Nutzfläche
A5: 3.1 Läden bis 400 m² Geschossfläche | B5: 40 | C5: 1 je 40 m² Verkaufsfläche | E5: 40 | F5: 1 je 40 m² Verkaufsfläche | G5: min. 1 je Laden, bei Notwendigkeit bitte in Zeile 31 manuell eintragen
A6: 3.2 Läden über 400 m² Geschossfläche, Einkaufszentren, großflächiger Einzelshandel | B6: 20 | C6: 1 je 20 m² Verkaufsfläche | E6: 45 | F6: 1 je 45 m² Verkaufsfläche
A7: 4.1 Gaststätten, Spielhallen / -casinos, Vereins- und Clubhäuser u.ä. | B7: 20 | C7: 1 je 20 m² Gastraum | E7: 10 | F7: 1 je 10 m² Gastraum
A8: 4.2 Hotels, Pensionen | B8: 6 | C8: 1 je 6 Betten | D8: bei 4.2 muss dazugehöriger Restaurantbetrieb zusätzlich ermittelt werden | E8: 20 | F8: 1 je 20 Betten | G8: bei 4.2 muss dazugehöriger Restaurantbetrieb zusätzlich ermittelt werden
A9: 4.3 Jugendherbergen | B9: 10 | C9: 1 je 10 Betten | E9: 7 | F9: 1 je 7 Betten
A10: 5.1 Kultur- und Versammlungsstätten (z.B. Theater, Konzerthallen, Kino, Vortragssäle, Diskotheken) | B10: 10 | C10: 1 je 10 Sitzplätze | E10: 10 | F10: 1 je 10 Sitzplätze
A11: 5.2 Kirchen und religiöse Einrichtungen | B11: 30 | C11: 1 je 30 Sitzplätze | E11: 20 | F11: 1 je 20 Sitzplätze
A12: 6.1 Sportplätze | B12: 250 | C12: 1 je 250 m² Sportfläche | D12: bei 6.1 bis 6.3 müssen Besucher (6.4) zusätzlich berücksichtigt werden | E12: 200 | F12: 1 je 200 m² Sportfläche
A13: 6.2 Sporthallen | B13: 100 | C13: 1 je 100 m² Sportfläche | E13: 4 | F13: 0,25 je Kleiderablage
A14: 6.3 Schwimmhallen, Fitnesscenter, Sauna, Solarium | B14: 10 | C14: 1 je 10 Kleiderablagen | E14: 4 | F14: 0,25 je Kleiderablage
A15: 6.4 zusätzlich für Besucher bei Nutzung entspr. 6.1-6.3 | B15: 15 | C15: 1 je 15 Besucherplätze | E15: 15 | F15: 1 je 15 Besucherplätze
A16: 6.5 Kegel- und Bowlingbahnen | B16: 0.5 | C16: 2 je Bahn | E16: 0.5 | F16: 2 je Bahn
A17: 6.6 Wochenendhaus-/Kleingartenanlagen | B17: 3 | C17: 1 je 3 Gärten | E17: 0
A18: 6.7 Bootshäuser/Bootsliegeplätze | B18: 4 | C18: 1 je 4 Liegeplätze | E18: 4 | F18: 1 je 4 Liegeplätze
A19: 7.1 Krankenhäuser, Kliniken, Kuranstalten u.ä. | B19: 10 | C19: 1 je 10 Betten | E19: 15 | F19: 1 je 15 Betten
A20: 7.2 Pflegeheime | B20: 10 | C20: 1 je 10 Betten | D20: mindestens 3, bei Notwendigkeit bitte in Zeile 9 manuell eintragen | E20: 30 | F20: 1 je 30 Betten | G20: mindestens 3, bei Notwendigkeit bitte in Zeile 31 manuell eintragen
A21: 8.1 Grundschulen | B21: 25 | C21: 1 je 25 Schüler | E21: 5 | F21: 1 je 5 Schüler
A22: 8.2 Gesamt- und Regionalschulen, Gymnasien, Berufsschulen | B22: 25 | C22: 1 je 25 Schüler | E22: 2 | F22: 1 je 2 Schüler
A23: 8.3 Förderschulen | B23: 25 | C23: 1 je 25 Schüler | E23: 10 | F23: 1 je 10 Schüler
A24: 8.4 Fachschulen, Hochschulen | B24: 10 | C24: 1 je 10 Schüler/Studierende/Mitarbeiter | E24: 3 | F24: 1 je Schüler/Studierende/Mitarbeiter
A25: 8.5 Kindertagesstätten | B25: 25 | C25: 1 je 25 Kinder | E25: 10 | F25: 1 je 10 Kitaplätze
A26: 9.1a Handwerks-, Gewerbe- und Industriebetriebe | B26: 60 | C26: 1 je 60 m² Nutzfläche | E26: 5 | F26: 1 je 5 Beschäftigte
A27: 9.1b Handwerks-, Gewerbe- und Industriebetriebe | B27: 3 | C27: 1 je 3 Beschäftigte | E27: 5 | F27: 1 je 5 Beschäftigte
A28: 9.2a Lagerräume, Lagerplätze, Ausstellungs- und Verkaufsplätze | B28: 90 | C28: 1 je 90 m² Nutzfläche | E28: 5 | F28: 1 je 5 Beschäftigte
A29: 9.2b Lagerräume, Lagerplätze, Ausstellungs- und Verkaufsplätze | B29: 3 | C29: 1 je 3 Beschäftigte | E29: 5 | F29: 1 je 5 Beschäftigte
A30: 9.3 Einrichtungen des Kfz-Gewerbes (Werkstätten, Waschplätze, Pflegedienste) | B30: 0.33 | C30: 3 je Pflege- oder Reparaturstand | E30: 5 | F30: 1 je 5 Beschäftigte
A31: 10.1 Friedhöfe | B31: 2000 | C31: 1 je 2000 m² Grundstücksfläche | D31: mindestens 10, bei Notwendigkeit bitte in Zeile 9 manuell eintragen | E31: 3000 | F31: 1 je 3000 m² Grundstücksfläche
